Cogmind - Beta 15 --- EXPLORER MODE // 2025.06.19 @ 21:18:40 Player: User15V Result: Destroyed by JQ-K5C(R) with Subdweller Laser Performance ------------- Evolutions (0) 0 Regions Visited (3) 600 Robots Destroyed (27) 135 Value Destroyed (541) 541 Prototype IDs (1) 20 Alien Tech Used (0) 0 Bonus (0) 0 TOTAL SCORE: 1296 Bonus ------- None Cogmind --------- Core Integrity 0/250 Matter 288/300 Energy 250/250 System Corruption 0% Temperature Cool (6) Movement Rolling (120) Ox1 Location -10/Subcaves Parts ------- > --- POWER (1) -------- Ion Engine > --- PROPULSION (2) --- Subdweller Monowheel > --- UTILITY (3) ------ Improved Heat Sink Large Storage Unit Makeshift Light Armor Plating > --- WEAPON (2) ------- Light Assault Rifle > --- INVENTORY (15) --- Light Ion Engine Light Ion Engine Scrap Suit Medium Storage Unit Experimental Sensor Array Seismic Detector Utility Shielding Sensor Drone Bay (16/20) Subdweller Beam Cannon Light Assault Rifle Barrage Gun Battle Cannon Mining Laser Peak State ------------ > --- POWER ------------ Light Nuclear Core > --- PROPULSION ------- Wheel Wheel > --- UTILITY ---------- Improved Heat Sink Large Storage Unit Sensor Drone Bay > --- WEAPON ----------- Medium Laser Particle Gun > --- INVENTORY -------- Ion Engine Light Ion Engine Light Ion Engine Wheel Scrap Suit Medium Storage Unit Experimental Sensor Array Seismic Detector Utility Shielding Makeshift Light Armor Plating Light Assault Rifle Light Assault Rifle Mining Laser [Rating: 23] Favorites ----------- Power Light Nuclear Core Engine Ion Engine Power Core Light Nuclear Core Propulsion Wheel Wheel Wheel Utility Large Storage Unit Device Improved Heat Sink Storage Large Storage Unit Protection Utility Shielding Weapon Medium Laser Energy Gun Medium Laser Ballistic Gun Light Assault Rifle Build | -11 -10 -10 -10 ------- Run | Yrd Mat Min Sub Slots Evolved 1 | . 1 . . Power . | . . . . Propulsion . | . . . . Utility 1 | . 1 . . Weapon . | . . . . Parts Attached 21 | 7 8 1 5 Power 3 | 1 1 . 1 Engine 2 | 1 . . 1 Core 1 | . 1 . . Reactor . | . . . . Propulsion 7 | 2 3 . 2 Treads . | . . . . Leg . | . . . . Wheel 7 | 2 3 . 2 Hover . | . . . . Flight . | . . . . Utility 7 | 2 3 1 1 Device 3 | 1 1 1 . Storage 2 | 1 1 . . Processor . | . . . . Hackware . | . . . . Protection 2 | . 1 . 1 Artifact . | . . . . Weapon 4 | 2 1 . 1 Energy Gun 3 | 2 1 . . Energy Cannon . | . . . . Ballistic Gun 1 | . . . 1 Ballistic Cannon . | . . . . Launcher . | . . . . Special Weapon . | . . . . Impact Weapon . | . . . . Slashing Weapon . | . . . . Piercing Weapon . | . . . . Special Melee Weapon . | . . . . Unidentified Prototypes 1 | . . 1 . Parts Lost 5 | . 1 . 4 Power . | . . . . Propulsion 4 | . 1 . 3 Utility . | . . . . Weapon 1 | . . . 1 Highest Loss Streak 2 | . 1 . 2 To Critical Strikes . | . . . . Average Backups 12 | 2 10 14 13 Power 2 | . 2 3 2 Propulsion 2 | . 2 3 1 Utility 3 | . 2 4 5 Weapon 3 | . 2 4 4 Tool/Special . | . . . . Unused Backups 13 | . . 3 10 Power 1 | . . . 1 Propulsion 2 | . . . 2 Utility 3 | . . 1 2 Weapon 7 | . . 2 5 Tool/Special . | . . . . Average Slot Usage (%) 98 | . 95 100 99 Engine 4 | . 5 . 7 Core 7 | . 6 12 4 Wheel 24 | . 24 25 24 Device 20 | . 12 24 24 Storage 12 | . 12 12 12 Protection 3 | . 9 . . Energy Gun 24 | . 25 25 22 Peak Build Rating 23 | 7 14 22 23 Average Rating 16 | 4 10 21 21 On Entrance 10 | . 7 14 22 Naked Turns . | . . . . Heaviest Build 45 | 17 32 45 45 Greatest Support 30 | 26 26 20 30 Greatest Overweight (x) 4 | . 1 2 4 Average Overweight (x) 1 | . . 1 1 Largest Inventory Capacity 15 | 10 15 15 15 Average Capacity 13 | 6 13 15 15 Most Carried 15 | 9 15 15 15 Average Carried 12 | 2 10 14 14 Final Capacity 15 | 10 15 15 15 Final Carried 15 | 9 15 15 14 Class Distribution -------------------- 56% | Scavenger-Mutant 43% | Hacker-Mutant Dominant Class ---------------- Hacker-Mutant | -10/Materials Scavenger-Mutant | -10/Mines Hacker-Mutant | -10/Subcaves Resources | -11 -10 -10 -10 ----------- Run | Yrd Mat Min Sub Matter Collected 404 | 270 80 10 44 Remotely . | . . . . Salvage Created 792 | 165 398 37 192 Parts 58 | 13 27 4 14 Haulers Intercepted . | . . . . Recyclers Shooed 1 | . 1 . . Parts Field Recycled . | . . . . Retrieved Matter . | . . . . Parts Self-Destructed . | . . . . Prevented . | . . . . Kills | -11 -10 -10 -10 ------- Run | Yrd Mat Min Sub Combat Hostiles Destroyed 13 | . 8 . 5 Guns 13 | . 8 . 5 Classes Destroyed 8 | 3 4 . 1 Worker 3 | 1 1 1 . Builder 3 | . 3 . . Tunneler 5 | 4 . 1 . Recycler 1 | 1 . . . Watcher 2 | . 2 . . Swarmer 2 | . 2 . . Grunt 6 | . 6 . . Subdweller 5 | . . . 5 Best Kill Streak 4 | 2 4 1 2 Combat Bots Only 2 | . 2 . 2 Max Kills in Single Turn 1 | 1 1 1 1 Gunslinging . | . . . . Exploded . | . . . . Melee . | . . . . Uniques/NPCs Destroyed . | . . . . Combat | -11 -10 -10 -10 -------- Run | Yrd Mat Min Sub Hostile Shots Fired 99 | . 41 . 58 Missed 31 | . 17 . 14 Hits 68 | . 24 . 44 Projectile 68 | . 24 . 44 Critical Strikes 2 | . . . 2 Damage Taken 840 | . 188 . 652 Core 257 | . 18 . 239 Absorbed by Shields . | . . . . Redirected to Shielding 2 | . 2 . . Ignored by Resistances 481 | . 121 . 360 Core Remaining (%) 100 | 100 . . . Volleys Fired 73 | 7 30 2 34 Largest 2 | 2 2 2 2 Hottest 115 | 90 115 115 115 Shots Fired 144 | 14 59 4 67 Gun 144 | 14 59 4 67 Cannon . | . . . . Launcher . | . . . . Special . | . . . . Kinetic 17 | . . . 17 Thermal 127 | 14 59 4 50 Explosive . | . . . . Electromagnetic . | . . . . Robot Hit Streak 28 | 12 27 5 28 Robot Miss Streak 3 | . 3 . 2 Penetration Max . | . . . . Secondary Targets 3 | . 2 . 1 Max Gunslinging Chain 1 | . 1 . 1 Shots Hit Robots 124 | 12 51 2 59 Core Hits 43 | 7 22 2 12 Critical Kills . | . . . . Critical Parts Destroyed . | . . . . Critical Strikes 8 | . 3 . 5 Burn 8 | . 3 . 5 Melee Attacks . | . . . . Impact . | . . . . Slashing . | . . . . Piercing . | . . . . Sneak Attacks . | . . . . Combat Hostiles . | . . . . Follow-up Attacks . | . . . . Damage Inflicted 1495 | 156 651 26 662 Guns 1495 | 156 651 26 662 Cannons . | . . . . Explosions . | . . . . Melee . | . . . . Ramming . | . . . . Kinetic 138 | . . . 138 Thermal 1357 | 156 651 26 524 Explosive . | . . . . Electromagnetic . | . . . . Impact . | . . . . Slashing . | . . . . Piercing . | . . . . Highest Corruption . | . . . . Average Corruption . | . . . . Corruption Purged . | . . . . Corruption Blocked . | . . . . Overload Shots . | . . . . Overflow Damage . | . . . . Projectiles . | . . . . Explosions . | . . . . Melee . | . . . . Knockbacks . | . . . . Impact . | . . . . Kinetic . | . . . . Secondary . | . . . . Self-Inflicted Damage . | . . . . Shots . | . . . . Rammed . | . . . . Targets Rammed . | . . . . Kicked . | . . . . Crushed . | . . . . Highest Temperature 240 | 70 240 18 . Average Temperature 58 | 26 68 12 . Received Heat Transfer 264 | . 90 . 174 Siege Activations . | . . . . Martial Activations . | . . . . Shielding Activations . | . . . . Robots Disrupted . | . . . . Combat Hostiles . | . . . . Robots Corrupted . | . . . . Combat Hostiles . | . . . . Parts Fried . | . . . . Impact Corruptions . | . . . . Robots Melted . | . . . . Combat Hostiles . | . . . . Parts Melted 9 | 1 7 . 1 Heat Transferred 4248 | 409 1952 74 1813 Parts Sabotaged . | . . . . Parts Stolen . | . . . . Parts Stripped . | . . . . Power Chain Reactions . | . . . . Alert | -11 -10 -10 -10 ------- Run | Yrd Mat Min Sub Maximum Alert Level . | . . . . Low Security (%) 100 | 100 100 100 . Level 1 . | . . . . Level 2 . | . . . . Level 3 . | . . . . Level 4 . | . . . . Level 5 . | . . . . High Security . | . . . . Max Security . | . . . . Peak Influence 70 | 10 70 5 . Initial . | . . . . Average 6 | 1 13 . . Influence Increases 265 | 30 225 10 . Destroy 0b10 Robot/C 160 | . 160 . . Destroy 0b10 Robot/NC 70 | 30 30 10 . Destroy Leader 34 | . 34 . . Destroy Structure 1 | . 1 . . Influence Decreases 265 | 30 225 10 . Time Decay 265 | 30 225 10 . Squads Dispatched . | . . . . Investigation . | . . . . Extermination . | . . . . Reinforcement . | . . . . Assault . | . . . . Garrison . | . . . . Intercept . | . . . . Searches Triggered . | . . . . Construction Impeded . | . . . . Haulers Reinforced . | . . . . Active Scanning Responses . | . . . . Cargo Convoy Interrupts . | . . . . Stealth | -11 -10 -10 -10 --------- Run | Yrd Mat Min Sub Distress Signals . | . . . . Communications Jammed . | . . . . Distress Signals . | . . . . Times Spotted 19 | . 12 . 7 Peak Tracking Total 3 | . 3 . 2 Tactical Retreats . | . . . . Traps | -11 -10 -10 -10 ------- Run | Yrd Mat Min Sub Traps Triggered 5 | . 3 . 2 Indirectly . | . . . . Trap Hack Attempts . | . . . . Triggered . | . . . . Disarmed . | . . . . Reprogrammed . | . . . . Reused . | . . . . Traps Extracted . | . . . . Installed . | . . . . Triggered . | . . . . Machines | -11 -10 -10 -10 ---------- Run | Yrd Mat Min Sub Machines Disabled . | . . . . Max in Single Turn . | . . . . Machines Repaired . | . . . . Machines Dismantled . | . . . . Machines Sabotaged . | . . . . Overloaded Fab Kills . | . . . . Hacking | -11 -10 -10 -10 --------- Run | Yrd Mat Min Sub Machines Accessed 1 | . . 1 . Terminals . | . . . . Fabricators . | . . . . Repair Stations . | . . . . Recycling Units . | . . . . Scanalyzers . | . . . . Garrison Access . | . . . . Total Hacks 1 | . . 1 . Successful 1 | . . 1 . Failed . | . . . . Catastrophic . | . . . . Database Lockouts . | . . . . Manual . | . . . . Terminals . | . . . . Fabricators . | . . . . Repair Stations . | . . . . Recycling Units . | . . . . Scanalyzers . | . . . . Garrison Access . | . . . . Terminal Hacks 1 | . . 1 . Open Door 1 | . . 1 . Fabricator Hacks . | . . . . Repair Station Hacks . | . . . . Recycling Unit Hacks . | . . . . Scanalyzer . | . . . . Garrison Access Hacks . | . . . . Unauthorized Hacks . | . . . . Terminals . | . . . . Fabricators . | . . . . Repair Stations . | . . . . Recycling Units . | . . . . Scanalyzers . | . . . . Garrison Access . | . . . . Data Cores Recovered . | . . . . Used . | . . . . Hacking Detections . | . . . . Full Trace Events . | . . . . Feedback Events . | . . . . Feedback Blocked . | . . . . Robot Schematics Acquired . | . . . . Robots Built . | . . . . Authchips . | . . . . Time . | . . . . Total Robot Build Rating . | . . . . Part Schematics Acquired . | . . . . Parts Built . | . . . . Authchips . | . . . . Time . | . . . . Total Part Build Rating . | . . . . Parts Repaired . | . . . . Time . | . . . . Parts Recycled . | . . . . Recycled Matter . | . . . . Retrieved Matter . | . . . . Retrieved Components . | . . . . Parts Scanalyzed . | . . . . Part Schematics Acquired . | . . . . Parts Damaged . | . . . . Bothacking | -11 -10 -10 -10 ------------ Run | Yrd Mat Min Sub Used RIF Installer . | . . . . Robots Hacked . | . . . . Non-combat . | . . . . Combat . | . . . . Robot Hacks Applied . | . . . . Relay Couplers Released . | . . . . Fabnet Peak Effective % . | . . . . Robots Rewired . | . . . . Allies Hacked . | . . . . Hacks Repelled . | . . . . Allies | -11 -10 -10 -10 -------- Run | Yrd Mat Min Sub Total Allies . | . . . . Largest Group . | . . . . Highest-Rated Group . | . . . . Highest-Rated Ally . | . . . . Total Orders 3 | . . 2 1 ROAM 2 | . . 1 1 RETURN 1 | . . 1 . Ally Attacks . | . . . . Total Damage . | . . . . Kills . | . . . . Allies Corrupted . | . . . . Allies Melted 1 | . . . 1 Intel | -11 -10 -10 -10 ------- Run | Yrd Mat Min Sub Active Infowar (turns) 305 | 81 224 . . Seismic 305 | 81 224 . . Robot Analysis Total . | . . . . Derelict Logs Recovered 2 | . . 2 . Drone Launches 44 | . . 24 20 Drone Recoveries 40 | . . 24 16 Exploration | -11 -10 -10 -10 ------------- Run | Yrd Mat Min Sub Turns Passed 1646 | 162 475 451 558 Spaces Moved 940 | 109 298 200 333 Core 24 | 24 . . . Treads . | . . . . Legs . | . . . . Wheels 916 | 85 298 200 333 Hover . | . . . . Flight . | . . . . Fastest Speed 50 | 50 90 95 107 Average Speed 104 | 82 102 109 109 Slowest Speed 140 | 100 115 110 140 Overloaded Moves . | . . . . Propulsion Burnouts . | . . . . Robots Hopped . | . . . . Potential Cave-ins . | . . . . Cave-ins Triggered . | . . . . Exploration Rate (%) 59 | 4 66 98 69 Regions Visited 3 Branch Regions 2 Pre-discovered Areas 1 | . . . 1 Known Exits Taken 3 | 1 1 1 . Unknown Exits Taken . | . . . . Scrap Searched 4 | . . . 4 Spaces Dug . | . . . . Terrain Destroyed . | . . . . Melee . | . . . . Projectile . | . . . . AOE . | . . . . Terrain Rammed . | . . . . Walls Destroyed . | . . . . Machines Disabled . | . . . . Actions | -11 -10 -10 -10 --------- Run | Yrd Mat Min Sub Total 1465 | 167 407 432 459 Wait 390 | 29 62 221 78 Move 937 | 108 297 199 333 Hop . | . . . . Pick Up 34 | 16 9 4 5 Fast Attach . | . . . . Attach 11 | 7 2 . 2 Detach . | . . . . Swap 10 | . 6 1 3 Drop 10 | . 1 5 4 Fire 73 | 7 30 2 34 Melee . | . . . . Ram . | . . . . Kick . | . . . . Crush . | . . . . Escape Stasis . | . . . . Rewire . | . . . . Trap . | . . . . Miscellaneous . | . . . . Route ------- -11/Scrapyard -10/Materials (discovered 5 exits: *Mat x3 / *Min / *Sub) -10/Mines (discovered 3 exits: *Mat x2 / *Sub) -10/Subcaves (discovered 2 exits: *Mat / *Rec) History --------- Turn | Location | Event 3 | -11/Scrapyard | Identified exit to Materials 3 | -11/Scrapyard | Discovered exit to Materials (range 16) 163 | -11/Scrapyard | Entered Materials 163 | -10/Materials | Evolved 1 slot: Utility x1 241 | -10/Materials | Identified exit to Subcaves 241 | -10/Materials | Discovered exit to Subcaves (range 7) 317 | -10/Materials | Build established: Hacker-Mutant 323 | -10/Materials | Identified exit to Materials 323 | -10/Materials | Discovered exit to Materials (range 16) 377 | -10/Materials | Discovered exit to Materials (range 7) 510 | -10/Materials | Discovered exit to Materials (range 11) 592 | -10/Materials | Identified exit to Mines 592 | -10/Materials | Discovered exit to Mines (range 10) 638 | -10/Materials | Entered Mines 645 | -10/Mines | Found the Drone Emporium 651 | -10/Mines | Found Prototype Device 652 | -10/Mines | Identified Sensor Drone Bay 768 | -10/Mines | Build established: Scavenger-Mutant 768 | -10/Mines | Discovered exit to Materials (range 64) 816 | -10/Mines | Discovered exit to Subcaves (range 68) 929 | -10/Mines | Found a Scrap Suit stashed away for nefarious purposes 932 | -10/Mines | Found Scrap Suit 1006 | -10/Mines | Found a damaged Exp. Sensor Array with a note attached 1008 | -10/Mines | Found Prototype Device 1083 | -10/Mines | Learned Materials stockpile data 1089 | -10/Mines | Entered Subcaves 1150 | -10/Subcaves | Identified exit to Materials 1150 | -10/Subcaves | Discovered exit to Materials (range 61) 1189 | -10/Subcaves | Identified exit to Recycling 1189 | -10/Subcaves | Discovered exit to Recycling (range 38) 1196 | -10/Subcaves | Ambushed by angry Subdweller bent on revenge 1263 | -10/Subcaves | Disturbed a concealed Subdweller 1327 | -10/Subcaves | Shifting Twisted Machinery released Sub. Laser 1352 | -10/Subcaves | Learned location of Zion (-6) 1352 | -10/Subcaves | Met a Zionite searching for "candidates" 1377 | -10/Subcaves | Disturbed a concealed Subdweller 1409 | -10/Subcaves | Ambushed by Subdwellers from Twisted Machinery 1415 | -10/Subcaves | Core integrity fell below 50% 1541 | -10/Subcaves | Shifting Twisted Machinery released Sub. Beam Cannon 1545 | -10/Subcaves | Shifting Twisted Machinery released Shrapnel Trap 1587 | -10/Subcaves | Core integrity fell below 20% 1616 | -10/Subcaves | Build established: Hacker-Mutant 1647 | -10/Subcaves | Destroyed by JQ-K5C(R) with Subdweller Laser Last Messages --------------- 01421_ 4M-YVB(R) destroyed. 01421_ Switching to secondary target: GW-P6N(R). 01424_ GW-P6N(R) suffers critical hit (Burn). 01436_ GW-P6N(R) destroyed. Sub. Beam Cannon falls loose from the Twisted Machinery. Shrapnel Trap falls loose from the Twisted Machinery. 01549_ 8R-73J(R): "OHNO!" 01550_ Dropped Particle Gun. 01551_ Acquired Sub. Beam Cannon. 01581_ 8R-73J(R) suffers critical hit (Burn). 01588_ Wheel destroyed. 01589_ Sub. Laser melted. 01589_ 8R-73J(R) destroyed. 01594_ Acquired 14 matter. 01596_ Acquired 10 matter. 01627_ Wheel destroyed. 01631_ Critical hit (Destroy). 01643_ Med. Laser destroyed. Map ----- +----------------------------------------------------+ | ?????????????????????????????????????????????????? | | ?????????????????????????????????????????????????? | | ?????????????????????????????????????????????????? | | ?????????????????????????????????????????????????? | | ?????????????????????????????????????????????????? | | ?????????????????????????????????????????????????? | | ?????????????????????????????????????????????????? | | ?????????????????????????????????????????????????? | | ?????????????????????????????????????????????????? | | ?????????????????????????????????????????????????? | | ?????????????????????????????????????????????????? | | ?????????????????????????????????????????????????? | | ?????????????????????????????????????????????????? | | ?????????????????????????????????????????????????? | | ?????????????????????????????????????????????????? | | ?????????????????????????????????????????????????? | | ????????????????????????????????????# ???????????? | | ????????????????????????????????????""""?????????? | | ??????????????????????????????????? ??????????? | | ?????????????????????????????????? ???????????? | | ????????????????????????????????? ????????????? | | ???????????????????????###??????? #?????????????? | | ???????????????????????# ##????? #####??????????? | | ?????????????????????### ##??? ####???????? | | ?????????????????????# #?? "???????? | | ?????????????????????# @ ### ????????? | | ?????????????????????# # R #???????????????? | | ?????????????????????# # R #???????????????? | | ?????????????????????# ### #??????????????? | | ???????????????????#### #### #??????????????? | | ?????????????????### ## #?## #??????????????? | | ?????????????????# #???## #??????????????? | | ?????????????????## # # ##?????##" #?????????????? | | ?????????????????# #####????????"" #????????????? | | ?????????????????# #????????????? ##????????????? | | ?????????????????## #????????????????????????????? | | ???????????###???# ##???????????????????????????? | | ??????????## ###### #???????????????????????????? | | ??????????# ## #%##???????????????????????????? | | ????????### " #???????????????????????????? | | ?????#### ## # ###???????????????????????????? | | #??### [ ########?????????????????????????????? | | #### " "#????????????????????????????????????? | | "&""#????????????????????????????????????? | | """#????????????????????????????????????? | | ## """"#????????????????????????????????????? | | #?## """"#???????????????????????????????????? | | ### ### " """???????????????????????????????????? | | """""???????????????????????????????????? | | " " """???????????????????????????????????? | +----------------------------------------------------+ Best States ------------- Heat Dissipation 39 Energy Generation 14 Energy Capacity 250 Matter Stores 300 Matter Capacity 300 Sight Range 16 Terrain Scan Density 10 Armor Coverage 100 Resistance: KI 35 Resistance: TH 35 Resistance: EX 35 Resistance: EM 35 Resistance: I 35 Resistance: S 35 Resistance: P 35 Utility Shielding 33 Evasion (%) 50 Offensive Hacking 20 Item Schematics ----------------- None Robot Schematics ------------------ None Fabricated ------------ Nothing Repaired ---------- Nothing Alien Tech Used ----------------- None Achievements -------------- None Challenges ------------ None Game ------ Seed InsulationMeleeMatterbank Manual? 0 Play Time 00:12:39 Cumulative 545.6 hours Start 2025.06.19 @ 21:07:56 End 2025.06.19 @ 21:18:40 Sessions 1 Manual Loads 0 Difficulty Explorer Special Mode None Game No. 241 Rogue 104 Adventurer 111 Explorer 26 Win Type - Total 39 Types 20/5/1/6/1/1/1/1/1/2 Lore% 90 Gallery% 94 Achievement% 94 Wizard Run 0 Options --------- Layout 2 ASCII 0 Keyboard 0 Movement Mouse Keybinds 0 Fullscreen 2 Font 24/Smallcaps Map View 50x44 Zoom Use 0% Tactical HUD 1 Map Filters NONE Filters NONE Steam 1 RUN: 227d4a82-2a6f-4efb-9d18-a869143e1e50